Cogmind - Beta 13 @@@ ROGUE MODE // 2024.07.08 @ 21:47:35 Player: Duduxx Result: Destroyed by G-34 Mercenary with Small Laser Performance ------------- Evolutions (1) 500 Regions Visited (3) 600 Robots Destroyed (44) 220 Value Destroyed (1240) 1240 Prototype IDs (4) 80 Alien Tech Used (0) 0 Bonus (101) 101 TOTAL SCORE: 2741 Bonus ------- High Alert Combat Kills 101 Cogmind --------- Core Integrity 0/400 Matter 266/300 Energy 200/200 System Corruption 1% Temperature Cool (79) Movement Treading (160) Location -9/Storage Parts ------- > --- POWER (1) -------- Cold Fusion Reactor > --- PROPULSION (2) --- Light Treads Light Treads > --- UTILITY (4) ------ Large Storage Unit Sensor Array Salvage Targeting Computer Salvage Targeting Computer > --- WEAPON (2) ------- Improved Medium Laser Heavy Assault Rifle > --- INVENTORY (15) --- Ion Engine Light Treads Rocket Launcher Rocket Launcher Peak State ------------ > --- POWER ------------ Cold Fusion Reactor > --- PROPULSION ------- Light Treads Light Treads > --- UTILITY ---------- Large Storage Unit Sensor Array Salvage Targeting Computer Salvage Targeting Computer > --- WEAPON ----------- Improved Medium Laser Heavy Assault Rifle > --- INVENTORY -------- Ion Engine Light Treads Rocket Launcher Rocket Launcher [Rating: 19] Favorites ----------- Power Ion Engine Engine Ion Engine Reactor Cold Fusion Reactor Propulsion Light Treads Treads Light Treads Wheel Wheel Utility Salvage Targeting Computer Device Terrain Scanner Storage Large Storage Unit Processor Salvage Targeting Computer Weapon Heavy Assault Rifle Energy Gun Small Laser Energy Cannon Light EM Pulse Cannon Ballistic Gun Heavy Assault Rifle Launcher Rocket Launcher Build | -11 -10 -9 -9 ------- Run | Yrd Mat Mat Sto Slots Evolved 2 | . . 2 . Power . | . . . . Propulsion . | . . . . Utility 2 | . . 2 . Weapon . | . . . . Parts Attached 33 | 6 3 9 15 Power 7 | 1 . 3 3 Engine 6 | 1 . 3 2 Core . | . . . . Reactor 1 | . . . 1 Propulsion 8 | 2 . 2 4 Treads 6 | . . 2 4 Leg . | . . . . Wheel 2 | 2 . . . Hover . | . . . . Flight . | . . . . Utility 6 | 1 2 2 1 Device 2 | . 1 . 1 Storage 2 | 1 1 . . Processor 2 | . . 2 . Hackware . | . . . . Protection . | . . . . Artifact . | . . . . Weapon 12 | 2 1 2 7 Energy Gun 8 | 2 1 2 3 Energy Cannon 1 | . . . 1 Ballistic Gun 2 | . . . 2 Ballistic Cannon . | . . . . Launcher 1 | . . . 1 Special Weapon . | . . . . Impact Weapon . | . . . . Slashing Weapon . | . . . . Piercing Weapon . | . . . . Special Melee Weapon . | . . . . Unidentified Prototypes 2 | . . . 2 Parts Lost 15 | . 1 4 10 Power 3 | . . 1 2 Propulsion 4 | . . 1 3 Utility 1 | . . . 1 Weapon 7 | . 1 2 4 Highest Loss Streak 3 | . 1 2 3 To Critical Strikes . | . . . . Average Slot Usage (%) 97 | . 98 97 97 Engine 10 | . 14 10 9 Treads 15 | . . 11 20 Wheel 6 | . 28 10 . Device 11 | . 12 11 10 Storage 11 | . 14 11 11 Processor 18 | . . 21 22 Energy Gun 14 | . 28 22 9 Energy Cannon 2 | . . . 3 Ballistic Gun 5 | . . . 7 Naked Turns . | . . . . Heaviest Build 39 | 14 30 30 39 Greatest Support 40 | 20 20 40 40 Greatest Overweight (x) 1 | . 1 1 1 Average Overweight (x) . | . . . . Largest Inventory Capacity 15 | 8 15 15 15 Average Capacity 14 | 7 12 15 15 Most Carried 7 | 4 6 7 7 Average Carried 4 | 2 3 5 4 Final Capacity 15 | 8 15 15 15 Final Carried 6 | 4 6 6 4 Class Distribution -------------------- 85% | Mutant 14% | Scavenger-Mutant Dominant Class ---------------- Mutant | -10/Materials Mutant | -9/Materials Mutant | -9/Storage Resources | -11 -10 -9 -9 ----------- Run | Yrd Mat Mat Sto Matter Collected 581 | 211 70 85 215 Remotely . | . . . . Salvage Created 1786 | . 263 420 1103 Parts 125 | . 25 32 68 Haulers Intercepted 1 | . . . 1 Recyclers Shooed 1 | . . . 1 Parts Field Recycled . | . . . . Retrieved Matter . | . . . . Parts Self-Destructed . | . . . . Prevented . | . . . . Kills | -11 -10 -9 -9 ------- Run | Yrd Mat Mat Sto Combat Hostiles Destroyed 37 | . 9 11 17 Guns 26 | . 7 9 10 Cannons 5 | . . . 5 AOE 5 | . 2 2 1 Classes Destroyed 7 | . 3 1 3 Hauler 1 | . . . 1 Recycler 1 | . . . 1 Watcher 5 | . 2 1 2 Swarmer 10 | . 6 4 . Grunt 15 | . 3 6 6 Duelist 1 | . . . 1 Sentry 11 | . . 1 10 Best Kill Streak 6 | . 6 6 4 Combat Bots Only 6 | . 6 6 3 Max Kills in Single Turn 2 | . 2 2 2 Gunslinging 1 | . . 1 . Exploded 2 | . 2 2 1 Melee . | . . . . Uniques/NPCs Destroyed . | . . . . Combat | -11 -10 -9 -9 -------- Run | Yrd Mat Mat Sto Hostile Shots Fired 197 | . 39 26 132 Missed 49 | . 11 8 30 Damage Taken 2077 | 2 264 228 1583 Core 446 | . 46 49 351 Absorbed by Shields . | . . . . Core Remaining (%) 90 | 100 81 . . Volleys Fired 111 | . 18 20 73 Largest 2 | . 2 2 2 Hottest 112 | . 90 90 112 Shots Fired 208 | . 35 39 134 Gun 186 | . 35 39 112 Cannon 21 | . . . 21 Launcher 1 | . . . 1 Special . | . . . . Kinetic 45 | . . . 45 Thermal 108 | . 18 23 67 Explosive 1 | . . . 1 Electromagnetic 54 | . 17 16 21 Robot Hit Streak 22 | . 8 6 22 Robot Miss Streak 4 | . 2 2 4 Penetration Max . | . . . . Secondary Targets 2 | . 1 1 . Max Gunslinging Chain 1 | . 1 1 . Shots Hit Robots 153 | . 24 27 102 Core Hits 66 | . 14 17 35 Critical Kills . | . . . . Critical Parts Destroyed . | . . . . Critical Strikes 8 | . . 2 6 Burn 6 | . . 1 5 Corrupt 2 | . . 1 1 Melee Attacks . | . . . . Impact . | . . . . Slashing . | . . . . Piercing . | . . . . Sneak Attacks . | . . . . Combat Hostiles . | . . . . Follow-up Attacks . | . . . . Damage Inflicted 2589 | 5 368 507 1709 Guns 1864 | . 297 340 1227 Cannons 395 | . . . 395 Explosions 247 | . 56 167 24 Melee . | . . . . Ramming 83 | 5 15 . 63 Kinetic 527 | . . . 527 Thermal 1195 | . 192 303 700 Explosive 24 | . . . 24 Electromagnetic 760 | . 161 204 395 Impact . | . . . . Slashing . | . . . . Piercing . | . . . . Highest Corruption 1 | . 1 . 1 Average Corruption 1 | . 1 . 1 Corruption Purged . | . . . . Corruption Blocked . | . . . . Overload Shots . | . . . . Overflow Damage 14 | . . 8 6 Projectiles 6 | . . . 6 Explosions 8 | . . 8 . Melee . | . . . . Knockbacks 1 | . 1 . . Impact 1 | . 1 . . Kinetic . | . . . . Secondary . | . . . . Self-Inflicted Damage 29 | 2 6 21 . Shots 1 | . . 1 . Rammed 13 | 1 4 . 8 Targets Rammed 13 | 1 4 . 8 Kicked . | . . . . Crushed . | . . . . Highest Temperature 255 | . 240 100 255 Average Temperature 59 | . 91 45 53 Received Heat Transfer 669 | . 48 75 546 Effects 1 | . . . 1 Energy Bleed 1 | . . . 1 Siege Activations . | . . . . Robots Corrupted . | . . . . Combat Hostiles . | . . . . Parts Fried 2 | . . . 2 Impact Corruptions . | . . . . Robots Melted 1 | . . . 1 Combat Hostiles 1 | . . . 1 Parts Melted 8 | . 1 . 7 Heat Transferred 3034 | . 507 598 1929 Parts Sabotaged . | . . . . Parts Stolen . | . . . . Parts Stripped . | . . . . Power Chain Reactions 2 | . 1 1 . Alert | -11 -10 -9 -9 ------- Run | Yrd Mat Mat Sto Peak Influence 525 | . 248 425 525 Initial 179 | . . 104 179 Average 304 | . 112 292 361 Maximum Alert Level 2 | . 1 2 2 Low Security (%) 26 | 100 87 28 9 Level 1 41 | . 12 46 48 Level 2 31 | . . 24 41 Level 3 . | . . . . Level 4 . | . . . . Level 5 . | . . . . High Security . | . . . . Max Security . | . . . . Squads Dispatched 10 | . 1 3 6 Investigation 5 | . 1 2 2 Extermination . | . . . . Reinforcement 2 | . . 1 1 Assault . | . . . . Garrison 3 | . . . 3 Intercept . | . . . . Searches Triggered . | . . . . Construction Impeded . | . . . . Haulers Reinforced . | . . . . Active Scanning Responses . | . . . . Cargo Convoy Interrupts . | . . . . Stealth | -11 -10 -9 -9 --------- Run | Yrd Mat Mat Sto Distress Signals 2 | . 1 1 . Communications Jammed . | . . . . Distress Signals . | . . . . Times Spotted 51 | . 12 16 23 Peak Tracking Total 6 | . 6 6 6 Tactical Retreats 3 | . . 2 1 Traps | -11 -10 -9 -9 ------- Run | Yrd Mat Mat Sto Traps Triggered 4 | . 2 1 1 Indirectly . | . . . . Trap Hack Attempts . | . . . . Triggered . | . . . . Disarmed . | . . . . Reprogrammed . | . . . . Reused . | . . . . Traps Extracted . | . . . . Installed . | . . . . Triggered . | . . . . Machines | -11 -10 -9 -9 ---------- Run | Yrd Mat Mat Sto Machines Disabled . | . . . . Max in Single Turn . | . . . . Machines Repaired . | . . . . Machines Dismantled . | . . . . Machines Sabotaged . | . . . . Overloaded Fab Kills . | . . . . Hacking | -11 -10 -9 -9 --------- Run | Yrd Mat Mat Sto Machines Accessed 10 | . 1 2 7 Terminals 8 | . . 1 7 Fabricators . | . . . . Repair Stations . | . . . . Recycling Units 2 | . 1 1 . Scanalyzers . | . . . . Garrison Access . | . . . . Total Hacks 24 | . 5 5 14 Successful 11 | . 2 2 7 Failed 13 | . 3 3 7 Catastrophic 4 | . 1 1 2 Database Lockouts . | . . . . Manual 1 | . . . 1 Terminals 15 | . . 1 14 Fabricators . | . . . . Repair Stations . | . . . . Recycling Units 9 | . 5 4 . Scanalyzers . | . . . . Garrison Access . | . . . . Terminal Hacks 8 | . . 1 7 Part Schematic 2 | . . . 2 Prototype ID Bank 1 | . . 1 . Open Door 2 | . . . 2 Registered Components 1 | . . . 1 Registered Prototypes 1 | . . . 1 Zone Layout 1 | . . . 1 Fabricator Hacks . | . . . . Repair Station Hacks . | . . . . Recycling Unit Hacks 3 | . 2 1 . Report Inventory 2 | . 1 1 . Retrieve Components 1 | . 1 . . Scanalyzer . | . . . . Garrison Access Hacks . | . . . . Unauthorized Hacks . | . . . . Terminals . | . . . . Fabricators . | . . . . Repair Stations . | . . . . Recycling Units . | . . . . Scanalyzers . | . . . . Garrison Access . | . . . . Data Cores Recovered . | . . . . Used . | . . . . Hacking Detections 7 | . 1 2 4 Full Trace Events 5 | . 1 1 3 Feedback Events 1 | . . . 1 Corruption 1 | . . . 1 Feedback Blocked . | . . . . Robot Schematics Acquired . | . . . . Robots Built . | . . . . Authchips . | . . . . Time . | . . . . Total Robot Build Rating . | . . . . Part Schematics Acquired 2 | . . . 2 Parts Built . | . . . . Authchips . | . . . . Time . | . . . . Total Part Build Rating . | . . . . Parts Repaired . | . . . . Time . | . . . . Parts Recycled . | . . . . Recycled Matter . | . . . . Retrieved Matter . | . . . . Retrieved Components 5 | . 5 . . Parts Scanalyzed . | . . . . Part Schematics Acquired . | . . . . Parts Damaged . | . . . . Bothacking | -11 -10 -9 -9 ------------ Run | Yrd Mat Mat Sto Used RIF Installer . | . . . . Robots Hacked . | . . . . Non-combat . | . . . . Combat . | . . . . Robot Hacks Applied . | . . . . Relay Couplers Released . | . . . . Fabnet Peak Effective % . | . . . . Robots Rewired . | . . . . Allies Hacked . | . . . . Hacks Repelled . | . . . . Allies | -11 -10 -9 -9 -------- Run | Yrd Mat Mat Sto Total Allies . | . . . . Largest Group . | . . . . Highest-Rated Group . | . . . . Highest-Rated Ally . | . . . . Total Orders . | . . . . Ally Attacks . | . . . . Total Damage . | . . . . Kills . | . . . . Allies Corrupted . | . . . . Allies Melted . | . . . . Intel | -11 -10 -9 -9 ------- Run | Yrd Mat Mat Sto Robot Analysis Total . | . . . . Derelict Logs Recovered . | . . . . Drone Launches . | . . . . Drone Recoveries . | . . . . Exploration | -11 -10 -9 -9 ------------- Run | Yrd Mat Mat Sto Turns Passed 1636 | 41 219 349 1027 Spaces Moved 863 | 35 171 200 457 Core 1 | 1 . . . Treads 551 | . . 94 457 Legs . | . . . . Wheels 311 | 34 171 106 . Hover . | . . . . Flight . | . . . . Fastest Speed 50 | 50 80 95 160 Average Speed 136 | 79 88 125 164 Slowest Speed 240 | 80 95 160 240 Overloaded Moves . | . . . . Propulsion Burnouts . | . . . . Robots Hopped . | . . . . Cave-ins Triggered . | . . . . Exploration Rate (%) 31 | 3 34 18 70 Regions Visited 3 Branch Regions 1 Pre-discovered Areas . | . . . . Known Exits Taken . | . . . . Unknown Exits Taken 3 | 1 1 1 . Scrap Searched . | . . . . Spaces Dug . | . . . . Terrain Destroyed 20 | . 3 2 15 Melee . | . . . . Projectile . | . . . . AOE 20 | . 3 2 15 Terrain Rammed . | . . . . Walls Destroyed . | . . . . Machines Disabled . | . . . . Actions | -11 -10 -9 -9 --------- Run | Yrd Mat Mat Sto Total 1107 | 45 202 261 599 Wait 48 | . 3 19 26 Move 860 | 34 170 199 457 Hop . | . . . . Pick Up 25 | 4 3 7 11 Fast Attach 13 | 6 1 3 3 Attach 19 | . 1 6 12 Detach 7 | . . 3 4 Swap 1 | . 1 . . Drop 10 | . 1 4 5 Fire 111 | . 18 20 73 Melee . | . . . . Ram 5 | 1 4 . . Kick . | . . . . Crush 8 | . . . 8 Escape Stasis . | . . . . Rewire . | . . . . Trap . | . . . . Miscellaneous . | . . . . Route ------- -11/Scrapyard -10/Materials (discovered 2 exits: *Mat / [*Min]) -9/Materials -9/Storage History --------- Turn | Location | Event 24 | -11/Scrapyard | Discovered new exit (range 15) 42 | -11/Scrapyard | Entered Materials 171 | -10/Materials | Discovered new exit (range 14) 204 | -10/Materials | Discovered new exit (range 15) 261 | -10/Materials | Entered another Materials area 261 | -9/Materials | Evolved 2 slots: Utility x2 315 | -9/Materials | Build established: Mutant 401 | -9/Materials | Discovered new exit (range 15) 610 | -9/Materials | Entered Storage 1119 | -9/Storage | Core integrity fell below 50% 1311 | -9/Storage | Garrison activated, responded to threat 1360 | -9/Storage | Lost 3 parts (1p1n1w) 1622 | -9/Storage | Core integrity fell below 20% 1637 | -9/Storage | Destroyed by G-34 Mercenary with Small Laser Last Messages --------------- Feedback: System corruption (+1%). 01550_ ALERT: Suspicious activity at Terminal S004. Dispatching Investigation squad. 01567_ Connecting with Door Terminal... 01618_ Y-45 Defender suffers critical hit (Burn). 01620_ Compression Vault explodes. 01622_ The unstable cave ceiling collapses. 01622_ K-01 Serf collects debris. 01628_ Y-45 Defender heat short circuits Imp. Ion Engine. 01629_ Y-45 Defender heat damages Broken Imp. Ion Engine, Heat Sink, Beam Rifle. 01630_ K-01 Serf collects debris. 01633_ G-34 Mercenary suffers critical hit (Burn). 01634_ Y-45 Defender heat damages Lgt. Treads. 01634_ K-01 Serf collects debris. 01635_ Y-45 Defender heat damages core (-7). 01636_ K-01 Serf collects debris. Map ----- +----------------------------------------------------+ | ?????????????????????????????????? | | ?????????????????????????????????? | | ?????????????????????????????????? | | ?????????????????????????????????? | | ?????????????????????????######### | | ?????????????????????????#!% !! | | ?????????????????????????#%####### | | ???????????????????#+#####%#?????? | | ???????????????????# [#?????? | | ???????????????##### ######? | | ???????????????# + ## #? | | ???????""""????###T# #? | | ??????## #??????### ######## #? | | ??????#T #????????# #??????## ##? | | ######## #????????# #???????#!#?? | | # # #???###### #???????#%#?? | | # + ##### # #??######*#?? | | # # T # #??# T # #?? | | # + "" # #??# #%#?? | | # k#####g## # #??# # #?? | | # = ## ## ##+####!![ # #?# | | # ## # #!![ # ### | | # = k # # #![[ +^%=% | | # g # # ##### | | # ! = # # #???? | | # @ % a # # #???? | | # g # ######???? | | # # + #????????? | | ######## # #????????? | | ????????# # #????????? | | ????????# # # #????????? | | ????????# ## # #????????? | | ????????######## # #????????? | | ???????????????# #######????????? | | ???????????????# #??????????????? | | ???????????????# #??????????????? | | ??????????????? ??????????????? | | ??????????????? ??????????????? | | ??????????????? ??????????????? | | ??????????????? ??????????????? | | ??????????????? ??????????????? | | ??????????????? ???????????????# | | ?????????????????????????????????? | | ????????????????????????????????#? | | ?????????????????????????????????? | | ?????????????????????????????????? | | ?????????????????????????????????? | | ?????????????????????????????????? | | ?????????????????????????????????? | | ????????????????????????????#????# | +----------------------------------------------------+ Best States ------------- Heat Dissipation 28 Energy Generation 17 Energy Capacity 265 Matter Stores 300 Matter Capacity 300 Sight Range 16 Robot Scan Range 14 Terrain Scan Range 14 Terrain Scan Density 10 Evasion (%) 44 Recoil Reduction 2 Salvage Targeting 2 Item Schematics ----------------- Hvy. Assault Cannon | -9/Storage | Hacked Hvy. Particle Cannon | -9/Storage | Hacked Robot Schematics ------------------ None Fabricated ------------ Nothing Alien Tech Used ----------------- None Achievements -------------- None Challenges ------------ None Game ------ Seed DataMobileFragment Manual? 0 Play Time 00:15:08 Cumulative 31.3 hours Start 2024.07.08 @ 14:45:00 End 2024.07.08 @ 21:47:35 Sessions 3 Manual Loads 0 Difficulty Rogue Special Mode None Game No. 76 Rogue 76 Adventurer 0 Explorer 0 Win Type - Total 0 Types 0/0/0/0/0/0/0/0/0 Lore% 23 Gallery% 30 Achievement% 22 Wizard Run 0 Options --------- Layout 1 ASCII 0 Keyboard 1 Movement Arrows Keybinds 0 Fullscreen 1 Font 24/Smallcaps Map View 50x35 Zoom Use 0% Tactical HUD 1 Map Filters NONE Filters NONE Steam 1 RUN: 12465cf6-8881-4689-a296-a3b0e50823ef